[Event "Israeli Team-ch 2023"]
[Site "Petah Tikva"]
[Date "2023.01.20"]
[Round "3.2"]
[White "Abergel, Thal"]
[Black "Smirin, Ilia"]
[Result "0-1"]
[ECO "B22"]
[WhiteElo "2392"]
[BlackElo "2596"]
[Annotator "TA"]
[PlyCount "100"]
[EventDate "2023.01.13"]
[EventCountry "ISR"]
[SourceTitle "playchess.com"]
[Source "ChessBase"]
[SourceQuality "1"]
[TimeControl "40/5400+30:1800+30"]

{[%evp 11,100,0,-12,-8,4,0,-2,11,16,8,10,0,73,-28,-14,-22,-27,-117,-122,-129,-110,-151,-164,-159,-160,-166,-168,-193,-157,-147,-148,-152,-150,-165,-164,-164,-152,-170,-161,-168,-168,-175,-168,-218,-207,-209,-191,-192,-170,-212,-222,-199,-191,-191,-189,-195,-190,-282,-276,-265,-216,-259,-283,-284,-284,-275,-277,-277,-249,-242,-237,-222,-208,-282,-268,-343,-320,-353,-329,-326,-307,-477,-460,-643,-635,-672,-672,-675,-666,-691,-615]} 1. e4 {[%emt 0:00:02]} c5 {[%emt 0:09:01]} 2. Be2 {[%emt 0:00:07]} Nc6 {[%emt 0:00:29]} 3. d3 {[%emt 0:00:46]} g6 {[%emt 0:01:57]} 4. f4 {[%emt 0:00:16]} Bg7 {[%emt 0:00:35]} 5. c3 {[%emt 0:00:22]} d6 {[%emt 0:03:50]} 6. Nf3 {[%emt 0:00:15]} Nf6 {[%emt 0:00:10]} 7. O-O {[%emt 0:05:06] [#] B22: Sicilian: 2 c3.} c4 $1 {[%emt 0:05:10]} 8. Kh1 {[%emt 0:03:27]} (8. Na3 cxd3) 8... O-O {[%emt 0:03:09]} 9. Na3 {[%emt 0:02:30] The position is equal. 9.Na3 has become a bit dusty these days.} cxd3 {[%emt 0:02:03]} 10. Bxd3 {[%emt 0:00:30]} b6 {[%emt 0:11:04]} 11. Qe1 {[%emt 0:01:43] [#]} e5 $146 {[%emt 0:03:51]} (11... Bb7 $11) ({Predecessor:} 11... Bb7 12. Qh4 e6 13. Be3 Nd7 14. Qh3 Qe7 15. Rae1 Nc5 16. Bc2 Ba6 17. Rf2 Nd3 18. Bxd3 Bxd3 {½-½ Buchenau,F (2247)-Bracker,F (2381) BL2-Nord 1314 2013 (9.1)}) 12. fxe5 {[%emt 0:01:58]} ({White should try} 12. f5 $1 $16) 12... Nxe5 $11 {[%emt 0:06:29]} 13. Nxe5 {[%emt 0:05:01]} dxe5 {[%emt 0:00:59]} 14. Bg5 {[%emt 0:03:54]} (14. Bc2 $11) 14... Qxd3 $17 {[%emt 0:01:19]} 15. Bxf6 {[%emt 0:03:02]} Bb7 $1 {[%emt 0:00:20][%cal Bc8b7,Bb7e4,Be4d3][%mdl 32]} 16. Bxg7 {[%emt 0:09:19]} Kxg7 {[%emt 0:02:42]} 17. Rd1 {[%emt 0:00:28]} Qxe4 {[%emt 0:00:26] Black is more active.} 18. Qxe4 {[%emt 0:00:16]} Bxe4 {[%emt 0:00:06]} 19. Nc4 {[%emt 0:00:03]} f6 {[%emt 0:05:30]} 20. Rd7+ {[%emt 0:00:39]} Kg8 $1 {[%emt 0:00:35]} 21. Nd6 {[%emt 0:00:52]} Bd3 {[%emt 0:10:02]} 22. Rd1 {[%emt 0:01:33]} e4 {[%emt 0:00:32]} 23. Kg1 {[%emt 0:00:16]} f5 {[%emt 0:01:06]} (23... Rad8 $2 24. Rxd8 Rxd8 25. Nxe4 $18) 24. Kf2 {[%emt 0:03:15]} Rad8 {[%emt 0:03:23]} 25. Rxd8 {[%emt 0:00:18]} Rxd8 $19 {[%emt 0:00:04][%mdl 4096] Endgame KRB-KRN} 26. Nb5 {[%emt 0:00:52]} Kg7 {[%emt 0:02:53]} 27. Nd4 {[%emt 0:06:15]} (27. h4 {might work better.}) 27... Kf6 {[%emt 0:01:11]} 28. Ke3 {[%emt 0:00:11]} g5 {[%emt 0:04:18] Threatens to win with ...f4+.} 29. g3 {[%emt 0:01:19]} Rd6 {[%emt 0:02:50] Prevents Nc6.} 30. Nb5 {[%emt 0:01:45]} Rd7 {[%emt 0:01:22]} ({Stronger than} 30... Bxb5 31. Rxd6+ Ke5 32. Rd8 $11) 31. Nd4 {[%emt 0:00:05]} Rf7 {[%emt 0:08:35]} 32. Rd2 {[%emt 0:01:36]} Bc4 {[%emt 0:02:07]} 33. Rf2 {[%emt 0:01:41]} Be6 {[%emt 0:00:19]} ({Inferior is} 33... Bxa2 34. Rxf5+ Kg6 35. Rxf7 Bxf7 36. Kxe4 $14) 34. b3 {[%emt 0:07:25]} (34. h4 $142 h6 35. b3) 34... Ke5 {[%emt 0:02:07] aiming for ...f4+.} 35. Nc6+ {[%emt 0:00:20] [#]} Kd6 $1 {[%emt 0:00:47]} 36. Nd4 {[%emt 0:00:19]} Bd7 {[%emt 0:00:15]} 37. h4 {[%emt 0:03:20]} gxh4 {[%emt 0:00:42]} 38. g4 {[%emt 0:00:07][%cal Rg4f5] [#]} f4+ {[%emt 0:02:24]} 39. Kxe4 {[%emt 0:00:30]} Bxg4 {[%emt 0:00:14]} 40. Rxf4 {[%emt 0:00:16]} Re7+ {[%emt 0:04:38]} 41. Kd3 {[%emt 0:30:53]} h5 {[%emt 0:30:06]} 42. Rf6+ {[%emt 0:01:52]} Ke5 {[%emt 0:00:00]} 43. Rf1 {[%emt 0:00:00]} Rc7 {[%emt 0:00:00] Inhibits Nc6+.} 44. a4 {[%emt 0:00:00]} h3 {[%emt 0:00:00]} 45. b4 {[%emt 0:00:00]} Rg7 {[%emt 0:00:00]} 46. b5 {[%emt 0:00:00]} (46. Nc6+ $142 Kd5 47. Nd4) 46... Bd7 {[%emt 0:00:00] And now ...Rg3+ would win. Black is clearly winning.} 47. Re1+ {[%emt 0:00:00]} Kd6 {[%emt 0:00:00]} 48. Rd1 {[%emt 0:00:00]} Rg2 {[%emt 0:00:00]} 49. Ke3 {[%emt 0:00:00]} Bg4 {[%emt 0:00:00]} 50. Rf1 {[%emt 0:00:57]} h2 {[%emt 0:00:00] Weighted Error Value: White=0.32/Black=0.06 (flawless)} 0-1

[Event "Israeli Team-ch 2023"]
[Site "Petah Tikva"]
[Date "2023.01.20"]
[Round "3.3"]
[White "Sutovsky, Emil"]
[Black "Tifferet, Shaked"]
[Result "1-0"]
[ECO "C84"]
[WhiteElo "2615"]
[BlackElo "2226"]
[Annotator "TA"]
[PlyCount "99"]
[EventDate "2023.01.13"]
[EventCountry "ISR"]
[SourceTitle "playchess.com"]
[Source "ChessBase"]
[SourceQuality "1"]
[TimeControl "40/5400+30:1800+30"]

{[%evp 15,99,18,22,9,0,0,0,0,0,0,0,0,0,0,0,0,26,26,29,24,29,24,27,27,19,16,33,24,34,39,33,41,57,37,37,37,102,102,102,112,106,84,81,80,210,201,216,217,216,200,269,256,280,280,280,280,370,368,356,361,368,344,506,475,549,502,606,624,624,618,615,594,598,585,569,522,891,842,903,743,743,743,1191,1161,29972,11730]} 1. e4 {[%emt 0:00:39]} e5 {[%emt 0:00:31]} 2. Nf3 {[%emt 0:00:14]} Nc6 {[%emt 0:00:13]} 3. Bb5 {[%emt 0:00:37][%cal Bf1b5,Bb5a4,Ba4b3,Bb3a2,Ba2d5][%mdl 32]} a6 {[%emt 0:00:13]} 4. Ba4 {[%emt 0:00:32]} Nf6 {[%emt 0:00:31]} 5. O-O {[%emt 0:00:09]} Be7 {[%emt 0:00:20]} 6. d3 {[%emt 0:01:18]} b5 {[%emt 0:00:39]} 7. Bb3 {[%emt 0:00:11]} d6 {[%emt 0:00:47]} 8. a4 {[%emt 0:02:12]} Bd7 {[%emt 0:01:31]} 9. Be3 {[%emt 0:01:08] C84: Closed Ruy Lopez: Unusual White 6th moves.} O-O {[%emt 0:08:06]} 10. Nc3 $5 {[%emt 0:01:03][%mdl 4] 10.axb5 is setting a new trend. A promising side line.} Na5 {[%emt 0:00:57]} 11. Ba2 {[%emt 0:00:07] The position is equal.} b4 {[%emt 0:11:11]} 12. Nd5 {[%emt 0:05:55]} Nxd5 {[%emt 0:04:18]} 13. Bxd5 {[%emt 0:00:03]} c6 {[%emt 0:00:12]} 14. Ba2 {[%emt 0:00:03] [#]} Rb8 $146 {[%emt 0:17:55][%cal Ob4b3]} ({Predecessor:} 14... c5 15. Nd2 Bg5 16. Bd5 Rc8 17. Qh5 Bxe3 18. fxe3 Be6 19. b3 Nc6 20. Nc4 Bxd5 21. exd5 {½-½ Hracek,Z (2565)-Postny,E (2564) CRO-chT1A 29th 2021 (2.1)}) 15. Nd2 {[%emt 0:02:32]} Be6 {[%emt 0:06:11]} 16. Bxe6 {[%emt 0:02:31]} fxe6 {[%emt 0:00:03]} 17. Qg4 {[%emt 0:01:53]} Rf6 {[%emt 0:05:00]} 18. f4 {[%emt 0:09:45]} exf4 {[%emt 0:01:00]} 19. Rxf4 {[%emt 0:01:09]} Rg6 {[%emt 0:00:55]} 20. Qe2 {[%emt 0:06:01]} c5 {[%emt 0:05:38] [#]} 21. e5 $1 {[%emt 0:05:18]} d5 {[%emt 0:21:41]} (21... dxe5 22. Rf2) 22. Raf1 {[%emt 0:08:45][%cal Oh2h4]} d4 {[%emt 0:04:07]} 23. Bf2 {[%emt 0:01:31]} Bg5 {[%emt 0:07:40]} (23... Qd5 24. Bg3) 24. Rf3 {[%emt 0:01:19]} Bxd2 $1 {[%emt 0:00:44]} 25. Qxd2 {[%emt 0:00:01]} Qg5 {[%emt 0:01:28]} ({Black should try} 25... Nc6 $14) 26. Qxg5 $16 {[%emt 0:00:52]} Rxg5 {[%emt 0:00:01]} 27. Bh4 {[%emt 0:00:15]} Rf5 {[%emt 0:01:35]} 28. Rxf5 {[%emt 0:00:24]} exf5 {[%emt 0:00:02]} 29. Rxf5 {[%emt 0:00:30][%mdl 4096] Endgame aiming for e6. KRB-KRN} Re8 {[%emt 0:00:36] [#] This costs Black the game.} (29... c4 $16) 30. e6 $1 $18 {[%emt 0:03:07][%mdl 512]} Rxe6 {[%emt 0:00:45]} 31. Rxc5 {[%emt 0:00:14]} Nc6 {[%emt 0:00:13]} 32. Bf2 {[%emt 0:04:00]} b3 {[%emt 0:00:43]} 33. cxb3 {[%emt 0:01:35]} Nb4 {[%emt 0:00:10]} 34. Rc8+ {[%emt 0:00:05]} ({And not} 34. Bxd4 Re1+ 35. Kf2 Nxd3+ 36. Kf3 Nxc5 37. Bxc5 Kf7 $15) 34... Kf7 {[%emt 0:00:02]} 35. Rc7+ {[%emt 0:01:36]} ({Much less strong is} 35. Bxd4 $6 Nxd3 36. g3 g5 $18) 35... Kg6 {[%emt 0:01:28]} 36. Bxd4 {[%emt 0:00:25]} Nxd3 {[%emt 0:00:29][%cal Re6e1]} 37. Rxg7+ {[%emt 0:00:59]} (37. Bxg7 $2 Re1#) 37... Kh6 {[%emt 0:00:22][%cal Re6e1]} 38. Rf7 {[%emt 0:01:20]} Re2 {[%emt 0:00:39]} (38... Kg6 $142) 39. h3 {[%emt 0:02:54]} Kg6 {[%emt 0:00:28]} 40. Rf3 {[%emt 0:06:37]} Rd2 {[%emt 0:00:30]} 41. Rf6+ {[%emt 0:31:51]} Kg5 {[%emt 0:03:37]} 42. Be3+ {[%emt 0:00:00]} Kxf6 {[%emt 0:00:06]} 43. Bxd2 {[%emt 0:00:00] KB-KN} Nc5 {[%emt 0:00:12]} 44. Kf2 {[%emt 0:00:00]} Nxb3 {[%emt 0:00:23]} 45. Bb4 {[%emt 0:00:00]} a5 {[%emt 0:05:07]} 46. Bc3+ {[%emt 0:00:00]} Ke6 {[%emt 0:00:06]} 47. g4 {[%emt 0:00:00]} Nc5 {[%emt 0:00:07]} 48. Ke3 {[%emt 0:00:00]} Kd5 {[%emt 0:05:06]} 49. h4 {[%emt 0:00:00]} Nxa4 {[%emt 0:01:55]} 50. Bd4 {[%emt 0:00:00] Weighted Error Value: White=0.04 (flawless) /Black=0.21 (precise)} ({Not} 50. Bxa5 Nxb2 51. Kf4 Nc4 $18) 1-0

[Event "Israeli Team-ch 2023"]
[Site "Petah Tikva"]
[Date "2023.01.20"]
[Round "3.4"]
[White "Poleg, Dan"]
[Black "Golod, Vitali"]
[Result "1/2-1/2"]
[ECO "D83"]
[WhiteElo "2193"]
[BlackElo "2501"]
[Annotator "TA"]
[PlyCount "30"]
[EventDate "2023.01.13"]
[EventCountry "ISR"]
[SourceTitle "playchess.com"]
[Source "ChessBase"]
[SourceQuality "1"]
[TimeControl "40/5400+30:1800+30"]

{[%evp 10,30,18,-2,29,28,39,39,34,24,29,15,16,16,15,18,16,14,22,18,29,29,30]} 1. d4 {[%emt 0:02:44]} Nf6 {[%emt 0:01:25]} 2. c4 {[%emt 0:00:35]} g6 {[%emt 0:02:30]} 3. Nc3 {[%emt 0:00:42]} d5 {[%emt 0:00:22]} 4. Bf4 {[%emt 0:00:32]} Bg7 {[%emt 0:01:10]} 5. e3 {[%emt 0:00:17]} O-O {[%emt 0:02:03]} 6. Qb3 {[%emt 0:00:34][%cal Rc4d5]} (6. Rc1 $5 {[%cal Rg1f3]}) 6... e6 {[%emt 0:09:53][%cal Oc7c5] D83: Grünfeld: 4 Bf4 Bg7 5 e3 0-0.} 7. Nf3 {[%emt 0:07:12]} b6 {[%emt 0:06:11]} 8. cxd5 {[%emt 0:03:34]} exd5 {[%emt 0:02:24] White is slightly better.} 9. Rc1 {[%emt 0:05:34]} c6 {[%emt 0:05:43] Prevents Nb5} 10. Be2 {[%emt 0:03:53]} Bb7 {[%emt 0:01:30]} 11. Ne5 {[%emt 0:08:19]} Nbd7 {[%emt 0:03:08]} 12. O-O {[%emt 0:00:08]} Nxe5 {[%emt 0:01:49]} 13. Bxe5 {[%emt 0:00:17]} Re8 {[%emt 0:01:24]} 14. Rfd1 {[%emt 0:02:17] [#]} Re7 $146 {[%emt 0:05:50]} ({Predecessor:} 14... Bh6 15. Bf3 Nd7 16. Bg3 Nf8 17. Qa4 Ne6 18. b4 b5 19. Qb3 Qe7 20. a4 a6 {0-1 Inkiov,V (2502)-Petrosian,T (2537) Lausanne op 2004 (4)}) 15. Bf3 {[%emt 0:09:07]} Ne8 {[%emt 0:02:09] Weighted Error Value: White=0.03 (flawless) /Black=0.05 (flawless)} 1/2-1/2

[Event "Israeli Team-ch 2023"]
[Site "Petah Tikva"]
[Date "2023.01.20"]
[Round "3.5"]
[White "Alekseev, Evgeny"]
[Black "Steiner-Prozhanski, Giora"]
[Result "1/2-1/2"]
[ECO "B47"]
[WhiteElo "2575"]
[BlackElo "2254"]
[Annotator "TA"]
[PlyCount "75"]
[EventDate "2023.01.13"]
[EventCountry "ISR"]
[SourceTitle "playchess.com"]
[Source "ChessBase"]
[SourceQuality "1"]
[TimeControl "40/5400+30:1800+30"]

{[%evp 9,75,18,46,22,25,0,2,7,9,-32,0,0,14,10,7,5,2,0,0,0,35,41,60,24,49,14,0,0,2,-52,12,0,0,-53,31,-66,-15,-48,20,30,257,257,242,259,375,385,374,396,391,387,389,381,364,0,0,0,0,0,0,-104,-106,-106,0,0,0,-107,0,0]} 1. e4 {[%emt 0:02:55]} c5 {[%emt 0:00:08]} 2. Nf3 {[%emt 0:00:47]} e6 {[%emt 0:00:05]} 3. d4 {[%emt 0:00:11]} cxd4 {[%emt 0:00:04]} 4. Nxd4 {[%emt 0:01:59]} Nc6 {[%emt 0:00:06]} 5. Nc3 {[%emt 0:00:08]} Qc7 {[%emt 0:00:05]} 6. g4 {[%emt 1:27:30] B47: Sicilian: Taimanov: 5 Nc3 Qc7 6 f4, 6 g3 and 6 Be2.} a6 {[%emt 0:00:37]} 7. Be3 $1 {[%emt 0:00:00] 7.Be3 scores better than 7.h4.} b5 {[%emt 0:02:51][%cal Bb7b5,Bb5b4][%mdl 32]} 8. Nxc6 {[%emt 0:00:00]} Qxc6 {[%emt 0:00:55]} 9. Qd2 {[%emt 0:00:00]} Bb7 {[%emt 0:11:36]} (9... b4 $15 10. Ne2 Qxe4) 10. O-O-O $11 {[%emt 0:00:00]} Nf6 {[%emt 0:16:34][%csl LRe4,LRg4] aiming for ...b4.} 11. f3 $1 {[%emt 0:00:00][%cal Bf2f3,Bf3f4,Bf4f5][%mdl 32]} b4 {[%emt 0:06:54]} 12. Ne2 {[%emt 0:00:00] White wants to play g5.} d5 {[%emt 0:00:37]} 13. e5 {[%emt 0:00:00]} Nd7 {[%emt 0:00:19]} 14. f4 {[%emt 0:00:00] [#]} Bc5 $146 {[%emt 0:13:11]} (14... d4 $5 15. Nxd4 Qxh1 $11) ({Predecessor:} 14... Nc5 15. Bg2 b3 16. Kb1 bxa2+ 17. Ka1 a5 18. Nd4 Qb6 19. f5 Rb8 20. Nf3 Ba6 {½-½ Brkic,A (2621)-Horvath,A (2501) CRO-chT1B 29th 2021 (7.51)}) 15. Bxc5 {[%emt 0:00:00]} Qxc5 {[%emt 0:01:45]} 16. Nd4 {[%emt 0:00:00]} O-O {[%emt 0:03:11]} 17. Qe3 {[%emt 0:00:00]} a5 {[%emt 0:04:41]} 18. f5 {[%emt 0:00:00]} Ba6 {[%emt 0:00:49] Prevents Bb5} 19. Qg5 {[%emt 0:00:00]} (19. fxe6 $11 fxe6 20. Bh3) 19... Rfe8 {[%emt 0:11:22]} (19... Rfc8 $1 $15) 20. f6 {[%emt 0:00:00][%csl Gf6][%cal Rg5g7]} Qf8 {[%emt 0:00:22]} 21. Re1 {[%emt 0:00:00]} (21. Nc6 $11) 21... Kh8 {[%emt 0:01:09]} ({Black should play} 21... Rec8 $15) 22. Qh4 {[%emt 0:00:00]} (22. Nc6 $1 $14) 22... gxf6 {[%emt 0:02:01]} (22... a4 $1 $15 23. g5 g6) 23. exf6 {[%emt 0:00:00]} Qc5 {[%emt 0:07:26]} (23... Bxf1 $15 24. Rhxf1 Rec8) 24. g5 $36 {[%emt 0:00:00][%cal Og5g6][%mdl 2048] Black is under pressure.} Bxf1 $2 {[%emt 0:01:16]} (24... Rg8 $1 $11) 25. g6 $18 {[%emt 0:01:40]} fxg6 {[%emt 0:00:17]} 26. Rhxf1 {[%emt 0:00:59]} e5 {[%emt 0:04:32]} (26... Rac8 $142 27. Rf3 (27. Rxe6 $2 Rxe6 28. Qh3 {[%mdl 64] Pin} Rxf6 $19) 27... Rf8 28. Rxe6 (28. Nxe6 $2 Qxc2#) 28... Rf7) 27. f7 $1 {[%emt 0:00:03]} (27. Qh6 Qf8 28. Qh3 Nxf6 $11) 27... Re7 {[%emt 0:03:37] [#]} (27... Qxd4 $2 28. fxe8=Q+ Rxe8 29. Qxd4 exd4 30. Rxe8+ $18) (27... Rec8 $2 28. Rxe5 Rf8 29. Ne6 $18) 28. Nc6 $1 {[%emt 0:00:25][%mdl 576] Deflection, Promotion} Re6 {[%emt 0:03:22]} 29. Nd8 {[%emt 0:02:54]} Rc8 {[%emt 0:01:20][%csl Gc8][%cal Rc5c2]} 30. Re2 {[%emt 0:04:03]} (30. Nxe6 $2 Qxc2#) 30... Rb6 {[%emt 0:00:03] [#] Hoping for ...Nf8.} 31. f8=Q+ $2 {[%emt 0:00:37]} Nxf8 $11 {[%emt 0:00:06]} 32. Nf7+ {[%emt 0:00:10]} Kg8 {[%emt 0:01:10]} 33. Nxe5 {[%emt 0:01:49]} Re6 {[%emt 0:02:18][%cal Oe6e5] ...Rxe5! would be deadly.} 34. Ng4 {[%emt 0:00:05] [#]} Nd7 $1 $17 {[%emt 0:00:59]} 35. Nh6+ {[%emt 0:00:21]} Kh8 {[%emt 0:00:21]} 36. Nf7+ {[%emt 0:00:36]} (36. Rxe6 $2 Qxc2#) 36... Kg8 {[%emt 0:00:29]} 37. Nh6+ {[%emt 0:00:41]} ({Don't play} 37. Ng5 Re7 38. Rff2 Rf8 39. Rxf8+ Nxf8 $15) 37... Kh8 {[%emt 0:00:04]} (37... Kg7 $17 38. Qg4 Rf8 39. Rxf8 (39. Rf7+ $2 Rxf7 40. Qxe6 Rf1+ 41. Re1 Rxe1+ 42. Qxe1 Kxh6 $19) 39... Nxf8 40. Nf5+ Kf6) 38. Nf7+ {[%emt 0:00:41] Black defended with fortune. A brilliant game!   Weighted Error Value: White=0.23 (precise) /Black=0.40} (38. Rxe6 $2 Qxc2#) 1/2-1/2

[Event "Israeli Team-ch 2023"]
[Site "Petah Tikva"]
[Date "2023.01.20"]
[Round "3.6"]
[White "Lurie, Michael"]
[Black "Kogan, Arthur"]
[Result "0-1"]
[ECO "A06"]
[WhiteElo "2295"]
[BlackElo "2471"]
[Annotator "TA"]
[PlyCount "52"]
[EventDate "2023.01.13"]
[EventCountry "ISR"]
[SourceTitle "playchess.com"]
[Source "ChessBase"]
[SourceQuality "1"]
[TimeControl "40/5400+30:1800+30"]

{[%evp 9,52,0,0,-12,20,13,12,10,20,10,20,19,27,-1,29,0,0,-28,-35,-101,-93,-95,-50,-58,-59,-51,-54,-52,-50,-36,0,0,0,0,0,0,0,-21,-21,-512,-479,-460,-457,-662,-641]} 1. Nf3 {[%emt 0:00:03]} d5 {[%emt 0:01:05]} 2. b3 {[%emt 0:00:08]} Bf5 {[%emt 0:01:50]} 3. Bb2 {[%emt 0:00:49]} e6 {[%emt 0:00:39]} 4. c4 {[%emt 0:02:00]} Nf6 {[%emt 0:01:46]} 5. d3 {[%emt 0:03:50]} c5 {[%emt 0:05:23] [#]} 6. Nh4 $146 {[%emt 0:04:14] A06: Réti Opening: 1 Nf3 d5.} ({Predecessor:} 6. Nbd2 Nc6 7. g3 Be7 8. Bg2 O-O 9. O-O Re8 10. Nh4 Bg4 11. h3 Bh5 12. g4 {1-0 Chaplin,P (2046)-Graff,B (1867) Checkmate Covid Rematch blitz 2021}) 6... Bg6 {[%emt 0:05:59]} 7. Nxg6 {[%emt 0:05:44]} hxg6 {[%emt 0:00:08]} 8. cxd5 {[%emt 0:00:13] The position is equal.} Qxd5 {[%emt 0:06:49]} 9. Nc3 {[%emt 0:05:54]} Qc6 {[%emt 0:01:55]} 10. e3 {[%emt 0:09:41]} Nbd7 {[%emt 0:03:27]} 11. Rc1 {[%emt 0:06:07]} Bd6 {[%emt 0:18:48]} 12. d4 {[%emt 0:09:23]} O-O {[%emt 0:02:07]} 13. Nb5 {[%emt 0:12:24]} Be7 $1 {[%emt 0:01:55]} 14. Na3 {[%emt 0:16:17]} ({White should play} 14. dxc5 $15 Nxc5 15. Nd4) 14... Rfd8 $17 {[%emt 0:02:54][%cal Oe6e5] Black is more active.} 15. b4 {[%emt 0:00:21]} Qe4 {[%emt 0:06:00]} ({Much worse is} 15... Qb6 $6 16. Nc4 Qa6 17. bxc5 Nxc5 18. Be2 $11) 16. bxc5 {[%emt 0:03:05] [#]} Nxc5 $1 {[%emt 0:00:58][%mdl 64] Pin} 17. Nc4 {[%emt 0:02:25]} Rac8 {[%emt 0:03:49]} 18. f3 {[%emt 0:08:31]} Qh4+ {[%emt 0:03:36]} 19. g3 {[%emt 0:00:05]} Qg5 {[%emt 0:01:22]} (19... Qh6 $5 {[%cal Rb7b5]} 20. Kf2 b5 $15) 20. Kf2 {[%emt 0:04:41]} b5 {[%emt 0:07:15]} 21. Ne5 {[%emt 0:00:23]} Nd5 {[%emt 0:08:15]} 22. Qe2 {[%emt 0:01:30] Strongly threatening h4.} Na4 {[%emt 0:02:00] ...Nxb2 is the strong threat. Excellent horsemanship.} 23. f4 {[%emt 0:00:48]} Qh5 $36 {[%emt 0:02:18][%mdl 2048] White must now prevent ...Qxe2+. White is under pressure.} 24. Qxb5 {[%emt 0:02:56][%mdl 8192] [#]} (24. Nc6 $1 $11 {and White has nothing to worry.} Qxe2+ 25. Bxe2 Nxb2 26. Bxb5) 24... Rb8 $1 $19 {[%emt 0:03:20] Black is clearly winning.} 25. Qxa4 {[%emt 0:00:05]} Rxb2+ {[%emt 0:00:06]} 26. Rc2 {[%emt 0:00:03]} (26. Kg1 $142 Bb4 27. Qd1 (27. Qxa7 $2 {loses.} Bd2 $19)) 26... Qd1 {[%emt 0:00:56] Weighted Error Value: White=0.36/Black=0.07 (flawless)} 0-1

[Event "Israeli Team-ch 2023"]
[Site "Petah Tikva"]
[Date "2023.01.20"]
[Round "3.7"]
[White "Mikhalevski, Victor"]
[Black "Parkhov, Yair"]
[Result "1/2-1/2"]
[ECO "E94"]
[WhiteElo "2516"]
[BlackElo "2467"]
[Annotator "TA"]
[PlyCount "40"]
[EventDate "2023.01.13"]
[EventCountry "ISR"]
[SourceTitle "playchess.com"]
[Source "ChessBase"]
[SourceQuality "1"]
[TimeControl "40/5400+30:1800+30"]

{[%evp 15,40,31,40,40,72,77,77,86,97,87,110,110,110,110,110,110,112,81,85,81,91,81,102,27,22,0,0]} 1. Nf3 {[%emt 0:00:04]} g6 {[%emt 0:05:09]} 2. d4 {[%emt 0:02:00]} Bg7 {[%emt 0:00:36]} 3. e4 {[%emt 0:01:36]} d6 {[%emt 0:00:52]} 4. c4 {[%emt 0:00:07]} Nf6 {[%emt 0:02:24]} 5. Nc3 {[%emt 0:00:07]} O-O {[%emt 0:00:05]} 6. Be2 {[%emt 0:00:05]} e5 {[%emt 0:00:06]} 7. O-O {[%emt 0:00:06]} Bg4 {[%emt 0:03:31]} 8. d5 {[%emt 0:03:04]} a5 {[%emt 0:03:54]} 9. Be3 {[%emt 0:08:52] E94: King's Indian: Classical: 6 Be2 e5 7 0-0: Various Black 7th moves.} Bxf3 {[%emt 0:03:08]} 10. Bxf3 {[%emt 0:00:25]} Na6 {[%emt 0:00:12]} 11. a3 {[%emt 0:03:39] White is better.} Nc5 {[%emt 0:12:33] [#]} 12. Rb1 $146 {[%emt 0:00:32]} ({Predecessor:} 12. b4 axb4 13. axb4 Rxa1 14. Qxa1 Nb3 15. Qa7 Nd4 16. Qxb7 Nxf3+ 17. gxf3 Nh5 18. c5 f5 19. cxd6 cxd6 {1-0 Gajwa,A (2245)-Mohota,N (2195) Titled Tuesday intern op 29th Sept blitz 2020 (3)}) 12... a4 {[%emt 0:00:27]} 13. Bxc5 {[%emt 0:00:29]} dxc5 {[%emt 0:00:03]} 14. Nxa4 {[%emt 0:00:05]} b6 {[%emt 0:00:20]} 15. Qc2 {[%emt 0:07:07]} Qe7 {[%emt 0:07:25]} 16. b4 {[%emt 0:15:43]} Nd7 {[%emt 0:01:40]} 17. Qb3 {[%emt 0:00:50]} Rfd8 {[%emt 0:03:22]} 18. Rfd1 {[%emt 0:54:39]} Bf8 {[%emt 0:01:45] [#] Black is weak on the light squares} 19. d6 {[%emt 0:00:00] White is more active.} cxd6 $11 {[%emt 0:00:33]} 20. Rd3 {[%emt 0:00:00]} b5 {[%emt 0:10:02] Weighted Error Value: White=0.16 (very precise) /Black=0.09 (flawless)} 1/2-1/2